[Event "Manhem Chess Week-Elo 2019"]
[Site "Moelnlycke"]
[Date "2019.08.15"]
[Round "6.6"]
[White "Degerfeldt, Sven"]
[Black "Jacobsson, Lennart"]
[Result "1/2-1/2"]
[ECO "A57"]
[WhiteElo "1918"]
[BlackElo "1754"]
[Annotator "NA"]
[PlyCount "105"]
[EventDate "2019.08.10"]
[EventType "tourn"]
[EventCountry "SWE"]
[SourceTitle "playchess.com"]
[Source "ChessBase"]
[SourceQuality "1"]
[TimeControl "40/5400+30:1800+30"]

1. d4 {[%emt 0:00:00]} Nf6 {[%emt 0:00:00]} 2. c4 {[%emt 0:00:00]} c5 {[%emt 0:00:00]} 3. d5 {[%emt 0:00:06]} b5 {[%emt 0:00:08]} 4. Qc2 {[%emt 0:00:16]} bxc4 {[%emt 0:03:29]} 5. e4 {[%emt 0:00:09]} d6 {[%emt 0:01:51]} 6. Bxc4 {[%emt 0:00:13]} g6 {[%emt 0:00:22]} 7. Nd2 {[%emt 0:02:52]} Bg7 {[%emt 0:00:46]} 8. Rb1 {[%emt 0:00:30]} O-O {[%emt 0:09:57]} 9. Ne2 {[%emt 0:04:36]} Ng4 {[%emt 0:03:32]} 10. O-O {[%emt 0:08:03]} Nd7 {[%emt 0:00:30]} 11. h3 {[%emt 0:01:55]} Nge5 {[%emt 0:00:25]} 12. b3 {[%emt 0:01:05]} Rb8 {[%emt 0:08:39]} 13. Bb2 {[%emt 0:00:53]} Qc7 {[%emt 0:03:25]} 14. f4 {[%emt 0:03:24]} Nxc4 {[%emt 0:07:38]} 15. Nxc4 {[%emt 0:02:14]} Bxb2 {[%emt 0:01:25]} 16. Rxb2 {[%emt 0:00:29]} Nb6 {[%emt 0:01:32]} 17. Ne3 {[%emt 0:11:05]} Ba6 {[%emt 0:10:20]} 18. Rc1 {[%emt 0:00:23]} Bxe2 {[%emt 0:08:59]} 19. Qxe2 {[%emt 0:00:12]} Qb7 {[%emt 0:04:12]} 20. Rd2 {[%emt 0:00:46]} Nd7 {[%emt 0:04:18]} 21. Nc4 {[%emt 0:02:21]} Qc7 {[%emt 0:10:35]} 22. e5 {[%emt 0:05:20]} Nb6 23. Re1 {[%emt 0:02:02]} Nxc4 {[%emt 0:01:41]} 24. bxc4 {[%emt 0:00:11]} Rb4 {[%emt 0:01:58]} 25. Rc2 {[%emt 0:03:36]} Rfb8 {[%emt 0:00:40]} 26. Kh2 {[%emt 0:05:29]} Rb1 {[%emt 0:01:48]} 27. Rxb1 {[%emt 0:01:07]} Rxb1 {[%emt 0:00:01]} 28. Qe4 {[%emt 0:01:01]} Rb4 {[%emt 0:03:18]} 29. Re2 {[%emt 0:01:56]} Rb8 {[%emt 0:00:34]} 30. h4 {[%emt 0:01:06]} Qc8 {[%emt 0:02:46]} 31. Qf3 {[%emt 0:02:26]} a5 {[%emt 0:01:20]} 32. e6 {[%emt 0:01:54]} f6 {[%emt 0:02:10]} 33. f5 {[%emt 0:00:54]} Qf8 {[%emt 0:02:36]} 34. Qf4 {[%emt 0:01:04]} gxf5 {[%emt 0:02:49]} 35. Re3 {[%emt 0:01:27]} Kh8 {[%emt 0:00:18]} 36. Rg3 {[%emt 0:00:33]} a4 {[%emt 0:00:38]} 37. h5 {[%emt 0:00:20]} Qd8 {[%emt 0:02:58]} 38. Qxf5 {[%emt 0:01:18]} h6 {[%emt 0:00:27]} 39. Qf4 {[%emt 0:00:34]} Qf8 {[%emt 0:00:15]} 40. Rg6 {[%emt 0:00:17]} Kh7 {[%emt 0:00:11]} 41. Qf5 {[%emt 0:33:31]} Kh8 {[%emt 0:03:04]} 42. Qf4 {[%emt 0:00:00]} Kh7 {[%emt 0:00:23]} 43. Qe4 {[%emt 0:00:00]} f5 {[%emt 0:06:45]} 44. Qc2 {[%emt 0:00:00]} a3 {[%emt 0:03:11]} 45. Qc3 {[%emt 0:00:00]} Qh8 {[%emt 0:10:20]} 46. Qxh8+ {[%emt 0:00:00]} Rxh8 {[%emt 0:00:14]} 47. Rg3 {[%emt 0:00:00]} Ra8 {[%emt 0:01:04]} 48. Rb3 {[%emt 0:00:00]} Kg7 {[%emt 0:01:05]} 49. Kg3 {[%emt 0:00:00]} Kf6 {[%emt 0:01:33]} 50. Kf4 {[%emt 0:00:00]} Ra4 {[%emt 0:02:53]} 51. Rc3 {[%emt 0:00:00]} Ra8 {[%emt 0:01:43]} 52. Rg3 {[%emt 0:00:00]} Rg8 {[%emt 0:01:44]} 53. Rxg8 {[%emt 0:00:04] Ke5+ Ke4+} 1/2-1/2

[Event "Manhem Chess Week-Elo 2019"]
[Site "Moelnlycke"]
[Date "2019.08.15"]
[Round "6.7"]
[White "Peterson, Rolf"]
[Black "Johansson, Eva"]
[Result "0-1"]
[ECO "D02"]
[WhiteElo "1580"]
[BlackElo "1869"]
[Annotator "NA"]
[PlyCount "116"]
[EventDate "2019.08.10"]
[EventType "tourn"]
[EventCountry "SWE"]
[SourceTitle "playchess.com"]
[Source "ChessBase"]
[SourceQuality "1"]
[TimeControl "40/5400+30:1800+30"]

1. d4 {[%emt 0:00:00]} d5 {[%emt 0:00:00]} 2. Bf4 {[%emt 0:00:02]} Nf6 {[%emt 0:00:35]} 3. Nf3 {[%emt 0:00:13]} e6 {[%emt 0:00:56]} 4. e3 {[%emt 0:00:11]} Be7 {[%emt 0:01:07]} 5. Nbd2 {[%emt 0:02:43]} O-O {[%emt 0:01:48]} 6. Bd3 {[%emt 0:00:36]} Nbd7 {[%emt 0:02:10]} 7. c4 {[%emt 0:01:45]} c6 {[%emt 0:03:44]} 8. Bg3 {[%emt 0:02:56]} b6 {[%emt 0:04:19]} 9. O-O {[%emt 0:00:23]} Ba6 {[%emt 0:02:34]} 10. b3 {[%emt 0:03:00]} Rc8 {[%emt 0:03:27]} 11. Qb1 {[%emt 0:01:34]} g6 {[%emt 0:03:40]} 12. a3 {[%emt 0:07:26]} Nh5 {[%emt 0:04:09]} 13. b4 {[%emt 0:00:49]} Nxg3 {[%emt 0:00:54]} 14. fxg3 {[%emt 0:00:16]} Bf6 {[%emt 0:01:49]} 15. Ra2 {[%emt 0:00:48]} Bg7 {[%emt 0:01:43]} 16. c5 {[%emt 0:00:25]} Bxd3 {[%emt 0:02:15]} 17. Qxd3 {[%emt 0:00:11]} b5 {[%emt 0:04:35]} 18. Nb3 {[%emt 0:01:31]} Qe7 {[%emt 0:02:16]} 19. Re2 {[%emt 0:02:25]} f5 {[%emt 0:02:55]} 20. Nfd2 {[%emt 0:01:12]} Nf6 {[%emt 0:02:54]} 21. Nf3 {[%emt 0:04:41]} Ng4 {[%emt 0:03:36]} 22. h3 {[%emt 0:01:31]} Nf6 {[%emt 0:00:16]} 23. Na5 {[%emt 0:00:13]} Ne4 {[%emt 0:00:31]} 24. Kh2 {[%emt 0:01:18]} Qc7 {[%emt 0:00:31]} 25. Ne5 {[%emt 0:05:58]} Bxe5 {[%emt 0:00:19]} 26. dxe5 {[%emt 0:00:05]} Qxe5 {[%emt 0:00:07]} 27. Rf3 {[%emt 0:00:10]} h5 {[%emt 0:01:41]} 28. h4 {[%emt 0:01:03]} Rf7 {[%emt 0:02:18]} 29. Nb3 {[%emt 0:00:38]} Rg7 {[%emt 0:01:48]} 30. Nd4 {[%emt 0:00:13]} g5 {[%emt 0:01:26]} 31. hxg5 {[%emt 0:02:04]} Rxg5 {[%emt 0:00:14]} 32. Rf4 {[%emt 0:00:20]} Rxg3 {[%emt 0:02:35]} 33. Nf3 {[%emt 0:00:47]} Qg7 {[%emt 0:01:58]} 34. Qd4 {[%emt 0:00:57]} Qxd4 {[%emt 0:09:42]} 35. exd4 {[%emt 0:01:29]} Rg4 {[%emt 0:00:33]} 36. Rxg4+ {[%emt 0:01:06]} hxg4 {[%emt 0:00:26]} 37. Ne5 {[%emt 0:01:26]} Kg7 {[%emt 0:01:00]} 38. g3 {[%emt 0:02:03]} Rc7 {[%emt 0:00:59]} 39. Kg2 {[%emt 0:01:17]} Kf6 {[%emt 0:00:28]} 40. Re3 {[%emt 0:01:48]} Kg5 {[%emt 0:03:06]} 41. Nd3 {[%emt 0:30:53]} Kf6 {[%emt 0:32:32]} 42. Ne5 {[%emt 0:00:42]} Ng5 {[%emt 0:00:44]} 43. Kf2 {[%emt 0:03:21]} Nf7 {[%emt 0:01:33]} 44. Nd3 {[%emt 0:01:17]} Re7 {[%emt 0:00:18]} 45. Ne5 {[%emt 0:05:51]} Nxe5 {[%emt 0:00:59]} 46. Rxe5 {[%emt 0:00:04]} a5 {[%emt 0:00:50]} 47. bxa5 {[%emt 0:02:40]} Ra7 {[%emt 0:00:05]} 48. Re3 {[%emt 0:00:05]} Rxa5 {[%emt 0:00:11]} 49. Kg2 {[%emt 0:02:12]} Ra4 {[%emt 0:00:32]} 50. Rd3 {[%emt 0:00:19]} e5 {[%emt 0:01:00]} 51. dxe5+ {[%emt 0:00:44]} Kxe5 {[%emt 0:00:13]} 52. Kf2 {[%emt 0:00:48]} d4 {[%emt 0:00:15]} 53. Ke2 {[%emt 0:00:39]} Kd5 {[%emt 0:00:09]} 54. Kd2 {[%emt 0:00:35]} Kxc5 {[%emt 0:00:10]} 55. Kc2 {[%emt 0:01:34]} Kd5 {[%emt 0:01:31]} 56. Rb3 {[%emt 0:01:27]} c5 {[%emt 0:00:45]} 57. Kd2 {[%emt 0:01:43]} b4 {[%emt 0:00:44]} 58. axb4 {[%emt 0:00:30]} Rxb4 {[%emt 0:00:05]} 0-1

[Event "Manhem Chess Week-Elo 2019"]
[Site "Moelnlycke"]
[Date "2019.08.15"]
[Round "6.8"]
[White "Berg, Roy"]
[Black "Hattab, Hashim"]
[Result "1-0"]
[ECO "E69"]
[WhiteElo "1913"]
[BlackElo "1868"]
[Annotator "NA"]
[PlyCount "249"]
[EventDate "2019.08.10"]
[EventType "tourn"]
[EventCountry "SWE"]
[SourceTitle "playchess.com"]
[Source "ChessBase"]
[SourceQuality "1"]
[TimeControl "40/5400+30:1800+30"]

1. d4 {[%emt 0:00:00]} Nf6 {[%emt 0:00:00]} 2. Nf3 {[%emt 0:00:30]} g6 {[%emt 0:00:30]} 3. c4 {[%emt 0:00:30]} Bg7 {[%emt 0:00:08]} 4. g3 {[%emt 0:00:11]} O-O {[%emt 0:00:19]} 5. Nc3 {[%emt 0:00:18]} d6 {[%emt 0:00:14]} 6. Bg2 {[%emt 0:00:06]} Nbd7 {[%emt 0:00:08]} 7. O-O {[%emt 0:00:17]} c6 {[%emt 0:00:51]} 8. e4 {[%emt 0:00:54]} e5 {[%emt 0:00:10]} 9. d5 {[%emt 0:01:43]} Qb6 {[%emt 0:00:17]} 10. h3 {[%emt 0:00:26]} Nc5 {[%emt 0:01:45]} 11. Qe2 {[%emt 0:12:17]} cxd5 {[%emt 0:03:29]} 12. cxd5 {[%emt 0:00:53]} Bd7 {[%emt 0:00:34]} 13. Be3 {[%emt 0:05:12]} a5 {[%emt 0:08:35]} 14. Rfc1 {[%emt 0:04:02]} Rfc8 {[%emt 0:02:39]} 15. Ne1 {[%emt 0:12:08]} Qd8 {[%emt 0:08:01]} 16. b3 {[%emt 0:02:24]} Qe8 {[%emt 0:02:34]} 17. Rab1 {[%emt 0:06:37]} b5 {[%emt 0:01:31]} 18. b4 {[%emt 0:09:02]} axb4 {[%emt 0:02:27]} 19. Rxb4 {[%emt 0:00:43]} Ra5 {[%emt 0:00:44]} 20. Nd3 {[%emt 0:02:16]} Bf8 {[%emt 0:00:50]} 21. f3 {[%emt 0:01:29]} h5 {[%emt 0:01:19]} 22. g4 {[%emt 0:01:31]} hxg4 {[%emt 0:02:39]} 23. hxg4 {[%emt 0:00:07]} Rca8 {[%emt 0:00:41]} 24. Nb2 {[%emt 0:03:12]} Be7 {[%emt 0:02:28]} 25. Bf1 {[%emt 0:00:34]} Nh7 {[%emt 0:01:57]} 26. Nbd1 {[%emt 0:05:25]} Nf8 {[%emt 0:00:32]} 27. Rc2 {[%emt 0:02:19]} g5 {[%emt 0:02:07]} 28. Qh2 {[%emt 0:01:02]} Ng6 {[%emt 0:00:20]} 29. Rcb2 {[%emt 0:02:30]} Kg7 {[%emt 0:00:28]} 30. Qh5 {[%emt 0:01:01]} Nh4 {[%emt 0:01:08]} 31. Kf2 {[%emt 0:01:51]} Qh8 {[%emt 0:04:22]} 32. Qxh8+ {[%emt 0:00:45]} Kxh8 {[%emt 0:04:36]} 33. Be2 {[%emt 0:10:27]} Ng6 {[%emt 0:00:16]} 34. Kf1 {[%emt 0:01:18]} Nf4 {[%emt 0:01:53]} 35. Bxb5 {[%emt 0:00:40]} Bxb5+ {[%emt 0:00:57]} 36. Rxb5 {[%emt 0:00:13]} Kg7 {[%emt 0:03:44]} 37. Rxa5 {[%emt 0:06:53]} Rxa5 {[%emt 0:00:44]} 38. Rb5 {[%emt 0:02:59]} Ra3 {[%emt 0:00:54]} 39. Bc1 {[%emt 0:01:23]} Ra8 {[%emt 0:00:16]} 40. Nb2 {[%emt 0:00:50]} Rh8 {[%emt 0:00:27]} 41. Bxf4 {[%emt 0:31:15]} exf4 {[%emt 0:30:29]} 42. Kg2 {[%emt 0:00:00]} Bf6 {[%emt 0:00:00]} 43. Ne2 {[%emt 0:00:00]} Rc8 {[%emt 0:00:00]} 44. Rb6 {[%emt 0:00:00]} Nd7 {[%emt 0:00:00]} 45. Rb7 {[%emt 0:00:00]} Rc2 {[%emt 0:00:00]} 46. Na4 {[%emt 0:00:00]} Rxe2+ {[%emt 0:00:00]} 47. Kf1 {[%emt 0:00:00]} Rxa2 {[%emt 0:00:00]} 48. Rxd7 {[%emt 0:00:00]} Rxa4 {[%emt 0:00:00]} 49. Rxd6 {[%emt 0:00:00]} Be5 {[%emt 0:00:00]} 50. Rc6 {[%emt 0:00:00]} Rd4 {[%emt 0:00:00]} 51. Ke2 {[%emt 0:00:00]} Kf8 {[%emt 0:00:00]} 52. Ra6 {[%emt 0:00:00]} Ke7 {[%emt 0:00:00]} 53. Ra7+ {[%emt 0:00:00]} Ke8 {[%emt 0:00:00]} 54. Ra8+ {[%emt 0:00:00]} Kd7 {[%emt 0:00:00]} 55. Ra7+ {[%emt 0:00:00]} Bc7 {[%emt 0:00:00]} 56. Ra2 {[%emt 0:00:00]} Kd6 {[%emt 0:00:00]} 57. Ra7 {[%emt 0:00:00]} Rb4 {[%emt 0:00:00]} 58. e5+ {[%emt 0:00:00]} Kxe5 {[%emt 0:00:00]} 59. Rxc7 {[%emt 0:00:00]} Rb2+ {[%emt 0:00:00]} 60. Kf1 {[%emt 0:00:00]} f6 {[%emt 0:00:00]} 61. Rd7 {[%emt 0:01:16]} Rb3 {[%emt 0:00:00]} 62. Kf2 {[%emt 0:00:18]} Rb2+ {[%emt 0:02:15]} 63. Kf1 {[%emt 0:00:11]} Kd4 {[%emt 0:01:19]} 64. Re7 {[%emt 0:01:20]} Kxd5 {[%emt 0:01:15]} 65. Re4 {[%emt 0:00:53]} Rb3 {[%emt 0:00:41]} 66. Kf2 {[%emt 0:00:40]} Rb2+ {[%emt 0:03:09]} 67. Kf1 {[%emt 0:00:13]} Rd2 {[%emt 0:00:22]} 68. Re8 {[%emt 0:00:27]} Kd4 {[%emt 0:00:43]} 69. Re4+ {[%emt 0:00:44]} Kd3 {[%emt 0:00:39]} 70. Re6 {[%emt 0:00:35]} Ra2 {[%emt 0:00:18]} 71. Re8 {[%emt 0:00:27]} Ra5 {[%emt 0:00:20]} 72. Kf2 {[%emt 0:00:23]} Ra2+ {[%emt 0:02:50]} 73. Kf1 {[%emt 0:00:30]} Rh2 {[%emt 0:00:59]} 74. Re6 {[%emt 0:00:29]} Kd2 {[%emt 0:00:27]} 75. Re8 {[%emt 0:00:24]} Rh7 {[%emt 0:02:50]} 76. Kf2 {[%emt 0:00:08]} Rf7 {[%emt 0:01:07]} 77. Rd8+ {[%emt 0:00:23]} Kc3 {[%emt 0:00:10]} 78. Re8 {[%emt 0:01:28]} Kd4 {[%emt 0:00:22]} 79. Re4+ {[%emt 0:00:34]} Kd5 {[%emt 0:00:51]} 80. Ra4 {[%emt 0:00:15]} Re7 {[%emt 0:00:25]} 81. Ra6 {[%emt 0:00:24]} Re6 {[%emt 0:01:03]} 82. Ra5+ {[%emt 0:00:10]} Kd6 {[%emt 0:01:23]} 83. Ra7 {[%emt 0:00:34]} Re3 {[%emt 0:01:22]} 84. Rf7 {[%emt 0:00:32]} Ke6 {[%emt 0:00:20]} 85. Rg7 {[%emt 0:00:11]} Rc3 {[%emt 0:01:14]} 86. Ra7 {[%emt 0:00:16]} Rc2+ {[%emt 0:00:16]} 87. Kf1 {[%emt 0:00:16]} Ke5 {[%emt 0:00:50]} 88. Re7+ {[%emt 0:00:19]} Kd6 {[%emt 0:00:43]} 89. Ra7 {[%emt 0:00:16]} Rc5 {[%emt 0:00:20]} 90. Ra6+ {[%emt 0:00:22]} Ke5 {[%emt 0:00:18]} 91. Ra8 {[%emt 0:00:32]} Kd4 {[%emt 0:00:17]} 92. Re8 {[%emt 0:00:30]} Re5 {[%emt 0:00:09]} 93. Rd8+ {[%emt 0:00:11]} Ke3 {[%emt 0:00:15]} 94. Kg2 {[%emt 0:00:16]} f5 {[%emt 0:01:19]} 95. gxf5 {[%emt 0:00:19]} Rxf5 {[%emt 0:04:02]} 96. Re8+ {[%emt 0:00:13]} Kd4 {[%emt 0:00:33]} 97. Re4+ {[%emt 0:00:17]} Kd3 {[%emt 0:00:44]} 98. Kh3 {[%emt 0:00:35]} g4+ {[%emt 0:04:21]} 99. Kxg4 {[%emt 0:00:24]} Rf8 {[%emt 0:00:30]} 100. Kg5 {[%emt 0:01:09]} Rf7 {[%emt 0:00:47]} 101. Re8 {[%emt 0:00:51]} Kd4 {[%emt 0:00:23]} 102. Kg6 {[%emt 0:00:35]} Ra7 {[%emt 0:01:28]} 103. Re4+ {[%emt 0:00:09]} Kd5 {[%emt 0:00:10]} 104. Rxf4 {[%emt 0:00:40]} Ra6+ {[%emt 0:01:04]} 105. Rf6 {[%emt 0:00:46]} Ra1 {[%emt 0:00:35]} 106. Kf5 {[%emt 0:01:07]} Rh1 {[%emt 0:02:23]} 107. f4 {[%emt 0:00:47]} Rg1 {[%emt 0:00:38]} 108. Re6 {[%emt 0:00:56]} Rg8 {[%emt 0:00:48]} 109. Re1 {[%emt 0:02:15]} Kd6 {[%emt 0:00:28]} 110. Re6+ {[%emt 0:00:33]} Kd5 {[%emt 0:00:20]} 111. Rg6 {[%emt 0:01:39]} Rf8+ {[%emt 0:01:01]} 112. Rf6 {[%emt 0:00:11]} Rg8 {[%emt 0:00:14]} 113. Rf7 {[%emt 0:00:14]} Kd6 {[%emt 0:00:18]} 114. Kf6 {[%emt 0:00:20]} Rg4 {[%emt 0:01:01]} 115. f5 {[%emt 0:00:16]} Rh4 {[%emt 0:01:19]} 116. Ra7 {[%emt 0:01:34]} Rg4 {[%emt 0:01:21]} 117. Ra6+ {[%emt 0:00:09]} Kd7 {[%emt 0:00:12]} 118. Re6 {[%emt 0:00:24]} Rf4 {[%emt 0:00:37]} 119. Re1 {[%emt 0:00:21]} Rg4 {[%emt 0:00:25]} 120. Kf7 {[%emt 0:00:22]} Kd6 {[%emt 0:01:14]} 121. f6 {[%emt 0:00:49]} Rg2 {[%emt 0:00:35]} 122. Kf8 {[%emt 0:01:24]} Rg5 {[%emt 0:00:20]} 123. f7 {[%emt 0:00:19]} Kd7 {[%emt 0:00:51]} 124. Rd1+ {[%emt 0:00:40]} Ke6 {[%emt 0:00:19]} 125. Ke8 {[%emt 0:00:18]} 1-0

[Event "Manhem Chess Week-Elo 2019"]
[Site "Moelnlycke"]
[Date "2019.08.16"]
[Round "7.2"]
[White "Berggren Torell, Harald"]
[Black "Fransson, Lennart"]
[Result "1/2-1/2"]
[ECO "B19"]
[WhiteElo "2137"]
[BlackElo "2014"]
[Annotator "ChessBase"]
[PlyCount "31"]
[EventDate "2019.08.10"]
[EventType "tourn"]
[EventCountry "SWE"]
[SourceTitle "playchess.com"]
[Source "ChessBase"]
[SourceQuality "1"]
[TimeControl "40/5400+30:1800+30"]

1. e4 {[%emt 0:07:09]} c6 {[%emt 0:00:00]} 2. d4 {[%emt 0:00:06]} d5 {[%emt 0:00:00]} 3. Nd2 {[%emt 0:00:16]} dxe4 {[%emt 0:00:00]} 4. Nxe4 {[%emt 0:00:03]} Bf5 {[%emt 0:00:06]} 5. Ng3 {[%emt 0:00:06]} Bg6 {[%emt 0:00:05]} 6. h4 {[%emt 0:00:10]} h6 {[%emt 0:00:08]} 7. Nf3 {[%emt 0:00:03]} Nd7 {[%emt 0:00:08]} 8. h5 {[%emt 0:00:29]} Bh7 {[%emt 0:00:04]} 9. Bd3 {[%emt 0:00:13]} Bxd3 {[%emt 0:00:10]} 10. Qxd3 {[%emt 0:00:03]} Qc7 {[%emt 0:00:12]} 11. Bd2 {[%emt 0:01:03]} e6 {[%emt 0:00:18]} 12. O-O-O {[%emt 0:00:25]} O-O-O {[%emt 0:00:21]} 13. c4 {[%emt 0:27:06]} Ngf6 {[%emt 0:02:13]} 14. Bc3 {[%emt 0:04:25]} Kb8 {[%emt 0:17:09]} 15. Kb1 {[%emt 0:04:52]} Bd6 {[%emt 0:09:40]} 16. Ne4 {[%emt 0:07:27]} 1/2-1/2

[Event "Manhem Chess Week-Elo 2019"]
[Site "Moelnlycke"]
[Date "2019.08.16"]
[Round "7.3"]
[White "Moller, Mikael"]
[Black "Olsson, William"]
[Result "1-0"]
[ECO "A03"]
[WhiteElo "1957"]
[BlackElo "2113"]
[Annotator "ChessBase"]
[PlyCount "85"]
[EventDate "2019.08.10"]
[EventType "tourn"]
[EventCountry "SWE"]
[SourceTitle "playchess.com"]
[Source "ChessBase"]
[SourceQuality "1"]
[TimeControl "40/5400+30:1800+30"]

1. f4 {[%emt 0:00:00]} d5 {[%emt 0:00:33]} 2. Nf3 {[%emt 0:00:38]} c5 {[%emt 0:00:08]} 3. e3 {[%emt 0:00:08]} Nc6 {[%emt 0:00:17]} 4. Be2 {[%emt 0:00:09]} Nf6 {[%emt 0:01:55]} 5. O-O {[%emt 0:00:08]} g6 {[%emt 0:01:32]} 6. Ne5 {[%emt 0:00:56]} a6 {[%emt 0:02:02]} 7. Nxc6 {[%emt 0:00:24]} bxc6 {[%emt 0:00:07]} 8. d3 {[%emt 0:00:57]} Bg7 {[%emt 0:00:41]} 9. Bf3 {[%emt 0:00:18]} Qb6 {[%emt 0:02:47]} 10. Nc3 {[%emt 0:04:37]} Nd7 {[%emt 0:02:41]} 11. Na4 {[%emt 0:11:56]} Qa7 {[%emt 0:03:21]} 12. c4 {[%emt 0:01:01]} Bb7 {[%emt 0:02:14]} 13. e4 {[%emt 0:02:18]} Rd8 {[%emt 0:03:37]} 14. Qe1 {[%emt 0:08:47]} Nb6 {[%emt 0:02:50]} 15. Nxb6 {[%emt 0:04:14]} Qxb6 {[%emt 0:00:19]} 16. Rb1 {[%emt 0:00:08]} O-O {[%emt 0:12:02]} 17. Bd2 {[%emt 0:03:55]} Rde8 {[%emt 0:00:21]} 18. Ba5 {[%emt 0:01:38]} Qa7 {[%emt 0:00:41]} 19. Bc3 {[%emt 0:02:47]} d4 {[%emt 0:11:14]} 20. Bd2 {[%emt 0:00:06]} e6 {[%emt 0:00:05]} 21. Qh4 {[%emt 0:00:18]} f5 {[%emt 0:02:13]} 22. g4 {[%emt 0:00:51]} Kh8 {[%emt 0:04:45]} 23. Kh1 {[%emt 0:00:45]} Bc8 {[%emt 0:01:34]} 24. gxf5 {[%emt 0:07:08]} exf5 {[%emt 0:02:34]} 25. e5 {[%emt 0:00:11]} Qc7 {[%emt 0:00:20]} 26. Rg1 {[%emt 0:01:59]} Kg8 {[%emt 0:00:15]} 27. Rg2 {[%emt 0:00:43]} Be6 {[%emt 0:02:07]} 28. Rbg1 {[%emt 0:00:08]} Rf7 {[%emt 0:00:30]} 29. Qe1 {[%emt 0:04:29]} Qb7 {[%emt 0:03:21]} 30. b3 {[%emt 0:00:10]} Ra8 {[%emt 0:08:44]} 31. Ba5 {[%emt 0:03:16]} Rc8 {[%emt 0:09:46]} 32. h4 {[%emt 0:00:10]} Kh8 {[%emt 0:10:10]} 33. h5 {[%emt 0:00:13]} Bh6 {[%emt 0:00:03]} 34. Bd2 {[%emt 0:00:13]} Qe7 {[%emt 0:00:32]} 35. hxg6 {[%emt 0:00:14]} hxg6 {[%emt 0:00:28]} 36. Rxg6 {[%emt 0:00:11]} Rh7 {[%emt 0:00:05]} 37. Kg2 {[%emt 0:03:31]} Bf7 {[%emt 0:00:21]} 38. Rxc6 {[%emt 0:03:07]} Rxc6 {[%emt 0:02:29]} 39. Bxc6 {[%emt 0:00:30]} Bh5 {[%emt 0:00:07]} 40. Kf1 {[%emt 0:03:44]} Bg4 {[%emt 0:04:23]} 41. Rh1 {[%emt 0:33:53]} Qe6 {[%emt 0:34:03]} 42. Bd5 {[%emt 0:04:20]} Qg6 {[%emt 0:00:09]} 43. Qh4 {[%emt 0:00:15]} 1-0

[Event "Manhem Chess Week-Elo 2019"]
[Site "Moelnlycke"]
[Date "2019.08.16"]
[Round "7.5"]
[White "Hattab, Hashim"]
[Black "Bohlin, Jan"]
[Result "1/2-1/2"]
[ECO "E29"]
[WhiteElo "1868"]
[BlackElo "1724"]
[Annotator "NA"]
[PlyCount "96"]
[EventDate "2019.08.10"]
[EventType "tourn"]
[EventCountry "SWE"]
[SourceTitle "playchess.com"]
[Source "ChessBase"]
[SourceQuality "1"]
[TimeControl "40/5400+30:1800+30"]

1. d4 {[%emt 0:00:00]} Nf6 {[%emt 0:00:00]} 2. c4 {[%emt 0:00:00]} e6 {[%emt 0:00:00]} 3. Nc3 {[%emt 0:00:14]} Bb4 {[%emt 0:00:00]} 4. e3 {[%emt 0:00:07]} O-O {[%emt 0:00:32]} 5. Bd3 {[%emt 0:00:05]} c5 {[%emt 0:00:10]} 6. a3 {[%emt 0:00:12]} Bxc3+ {[%emt 0:00:08]} 7. bxc3 {[%emt 0:00:08]} Nc6 {[%emt 0:00:20]} 8. Ne2 {[%emt 0:01:54]} b6 {[%emt 0:00:27]} 9. e4 {[%emt 0:01:15]} Ne8 {[%emt 0:00:42]} 10. Be3 {[%emt 0:08:41]} d6 {[%emt 0:09:09]} 11. f4 {[%emt 0:00:00] E29: Nimzo-Indian: Sämisch: 5...0-0 6 e3 c5 7 Bd3 Nc6} (11. O-O Na5 12. Ng3 Ba6 13. Qe2 Qd7 14. f4 Rc8 15. Rac1 f6 16. d5 Nc7 17. e5 f5 18. Rcd1 Rcd8 19. Bf2 g6 20. Rfe1 Rfe8 {½-½ (29) Toth,E (2426)-Vetoshko,V (2511) Slovakia 2018}) 11... f5 {[%emt 0:02:42]} 12. Ng3 {[%emt 0:04:26]} Qh4 {[%emt 0:18:05]} 13. exf5 $146 {[%emt 0:06:58]} ({Predecessor:} 13. O-O Nf6 14. Kh1 Ng4 15. Bg1 cxd4 16. exf5 Rf6 17. Be2 exf5 18. cxd4 {0-1 (32) Rubio Aguado,F-Cuellar Gacharna,M Mar del Plata 1957}) 13... exf5 {[%emt 0:00:32]} 14. d5 {[%emt 0:00:30]} Na5 {[%emt 0:03:23]} 15. O-O {[%emt 0:00:32]} g6 {[%emt 0:06:12]} 16. Bf2 {[%emt 0:01:02]} Qd8 {[%emt 0:07:54]} 17. Re1 {[%emt 0:01:50]} Ba6 {[%emt 0:02:57]} 18. Qa4 {[%emt 0:08:17]} Ng7 {[%emt 0:04:48]} ({Better is} 18... Nf6 $17 19. Rad1 Qd7 20. Qxd7 Nxd7) 19. Re2 {[%emt 0:04:57]} Rf7 {[%emt 0:01:52]} 20. Rae1 {[%emt 0:01:08]} Qd7 {[%emt 0:00:35]} 21. Qc2 {[%emt 0:04:32]} Bxc4 {[%emt 0:03:18]} 22. Bxc4 {[%emt 0:00:44]} Nxc4 {[%emt 0:00:01]} 23. a4 {[%emt 0:00:54]} a6 {[%emt 0:08:19]} 24. Nf1 {[%emt 0:02:24]} (24. Qa2 $15 b5 25. axb5) 24... b5 {[%emt 0:02:06]} 25. Bh4 $17 {[%emt 0:00:46]} Re8 {[%emt 0:06:28]} 26. Rxe8+ {[%emt 0:00:45]} Nxe8 {[%emt 0:00:12]} 27. axb5 {[%emt 0:00:53]} axb5 {[%emt 0:00:35]} 28. Qa2 {[%emt 0:01:51]} Nf6 {[%emt 0:04:31]} 29. Ng3 {[%emt 0:08:43]} Kg7 {[%emt 0:02:32]} 30. Qa8 {[%emt 0:01:53]} Nb6 {[%emt 0:03:42]} 31. Bxf6+ {[%emt 0:07:38]} Rxf6 {[%emt 0:01:26]} 32. Qb8 {[%emt 0:00:48]} Nxd5 {[%emt 0:01:08]} 33. Re8 {[%emt 0:00:17]} Rf7 {[%emt 0:03:36]} 34. h4 {[%emt 0:02:51]} Nf6 {[%emt 0:03:22]} 35. Re1 {[%emt 0:03:54]} Rf8 {[%emt 0:01:36]} 36. Qb6 {[%emt 0:00:42]} Nd5 {[%emt 0:00:38]} 37. Qa5 {[%emt 0:00:36]} Nxf4 {[%emt 0:00:36]} 38. Nf1 {[%emt 0:01:05]} Re8 {[%emt 0:01:15]} 39. Rxe8 {[%emt 0:01:03]} Qxe8 {[%emt 0:00:01]} 40. Qc7+ {[%emt 0:00:19]} Qf7 {[%emt 0:00:49]} 41. Qxd6 {[%emt 0:30:31]} Ne2+ {[%emt 0:33:20]} 42. Kh2 {[%emt 0:00:55]} Nxc3 {[%emt 0:00:00]} 43. Qxc5 {[%emt 0:00:00]} Ne4 {[%emt 0:00:00]} 44. Qxb5 {[%emt 0:00:00]} Qc7+ {[%emt 0:00:00]} 45. Kg1 {[%emt 0:00:00]} Qc5+ {[%emt 0:00:00]} 46. Qxc5 {[%emt 0:00:00]} Nxc5 {[%emt 0:00:00]} 47. g3 {[%emt 0:00:00]} Ne4 {[%emt 0:00:00]} 48. Kg2 {[%emt 0:00:00]} Kf6 {[%emt 0:00:00]} 1/2-1/2